Cogmind - Beta 10.2 @@@ ROGUE MODE // 2021.07.07 @ 12:56:11 Player: Acedrin Result: Destroyed by L-31 Rogue with Katana Performance ------------- Evolutions (1) 500 Regions Visited (2) 400 Robots Destroyed (9) 45 Value Destroyed (157) 157 Prototype IDs (0) 0 Alien Tech Used (0) 0 Bonus (0) 0 TOTAL SCORE: 1102 Bonus ------- None Cogmind --------- Core Integrity 0/400 Matter 300/300 Energy 500/500 System Corruption 2% Temperature Cool (0) Movement Core (200) Ox3 Location -9/Materials Parts ------- > --- POWER (1) -------- (None) > --- PROPULSION (2) --- (None) > --- UTILITY (4) ------ Medium Storage Unit High-capacity Battery > --- WEAPON (2) ------- (None) > --- INVENTORY (8) ---- Rocket Launcher Peak State ------------ > --- POWER ------------ Light Nuclear Core > --- PROPULSION ------- Wheel Wheel > --- UTILITY ---------- Visual Processing Unit Signal Interpreter > --- WEAPON ----------- EM Pulse Gun Particle Gun > --- INVENTORY -------- Light Ion Engine High-capacity Battery Small Matter Pod Rocket Launcher [Rating: 11] Favorites ----------- Power Light Nuclear Core Engine Light Ion Engine Power Core Light Nuclear Core Propulsion Wheel Treads Light Treads Leg Aluminum Leg Wheel Wheel Utility Sensor Array Device Sensor Array Storage High-capacity Battery Processor Signal Interpreter Weapon EM Pulse Gun Energy Gun EM Pulse Gun Ballistic Gun Assault Rifle Build | -11 -10 -9 ------- Run | Scr Mat Mat Slots Evolved 2 | . . 2 Power . | . . . Propulsion . | . . . Utility 2 | . . 2 Weapon . | . . . Parts Attached 21 | 8 12 1 Power 3 | 1 2 . Engine 2 | 1 1 . Core 1 | . 1 . Reactor . | . . . Propulsion 6 | 3 3 . Treads 1 | . 1 . Leg 1 | 1 . . Wheel 4 | 2 2 . Hover . | . . . Flight . | . . . Utility 8 | 2 5 1 Device 2 | 1 1 . Storage 4 | 1 2 1 Processor 2 | . 2 . Hackware . | . . . Protection . | . . . Artifact . | . . . Weapon 4 | 2 2 . Energy Gun 3 | 1 2 . Energy Cannon . | . . . Ballistic Gun 1 | 1 . . Ballistic Cannon . | . . . Launcher . | . . . Special Weapon . | . . . Impact Weapon . | . . . Slashing Weapon . | . . . Piercing Weapon . | . . . Special Melee Weapon . | . . . Unidentified Prototypes . | . . . Parts Lost 6 | . . 6 Power 1 | . . 1 Propulsion 2 | . . 2 Utility 1 | . . 1 Weapon 2 | . . 2 Highest Loss Streak 6 | . . 6 Average Slot Usage (%) 88 | . 99 59 Engine 3 | . 5 . Core 8 | . 8 6 Treads 7 | . 7 6 Wheel 16 | . 20 6 Device 8 | . 8 7 Storage 14 | . 12 22 Processor 5 | . 7 . Energy Gun 21 | . 24 11 Ballistic Gun 1 | . 2 . Naked Turns . | . . . Heaviest Build 23 | 9 19 23 Greatest Support 20 | 20 20 20 Greatest Overweight (x) 4 | . 3 4 Average Overweight (x) . | . . 2 Largest Inventory Capacity 8 | 4 8 8 Average Capacity 5 | 4 5 8 Most Carried 4 | 4 4 1 Average Carried 1 | . 2 1 Final Capacity 8 | 4 8 8 Final Carried 2 | . 2 1 Class Distribution -------------------- 100% | Mutant Dominant Class ---------------- Mutant | -10/Materials Mutant | -9/Materials Resources | -11 -10 -9 ----------- Run | Scr Mat Mat Matter Collected 464 | 338 126 . Remotely . | . . . Salvage Created 208 | 61 147 . Parts 15 | 4 11 . Haulers Intercepted . | . . . Recyclers Shooed . | . . . Parts Field Recycled . | . . . Retrieved Matter . | . . . Parts Self-Destructed . | . . . Prevented . | . . . Kills | -11 -10 -9 ------- Run | Scr Mat Mat Combat Hostiles Destroyed 5 | 1 4 . Guns 5 | 1 4 . Classes Destroyed 5 | 2 3 . Worker 1 | 1 . . Operator 2 | . 2 . Watcher 1 | . 1 . Swarmer 3 | . 3 . Grunt 2 | 1 1 . Best Kill Streak 3 | 1 3 . Combat Bots Only 3 | 1 3 . Max Kills in Single Turn 1 | 1 1 . Gunslinging . | . . . Exploded . | . . . Melee . | . . . Uniques/NPCs Destroyed . | . . . Combat | -11 -10 -9 -------- Run | Scr Mat Mat Damage Taken 1087 | 56 137 894 Core 461 | . 56 405 Absorbed by Shields . | . . . Core Remaining (%) 88 | 100 77 . Volleys Fired 25 | 4 17 4 Largest 2 | 2 2 2 Hottest 105 | 60 105 105 Shots Fired 45 | 8 30 7 Gun 45 | 8 30 7 Cannon . | . . . Launcher . | . . . Special . | . . . Kinetic 6 | 4 2 . Thermal 17 | . 14 3 Explosive . | . . . Electromagnetic 22 | 4 14 4 Robot Hit Streak 5 | 3 5 2 Robot Miss Streak 3 | 2 3 2 Penetration Max . | . . . Secondary Targets 1 | . 1 . Max Gunslinging Chain 1 | . 1 . Shots Hit Robots 20 | 4 13 3 Core Hits 13 | 2 7 4 Critical Hits . | . . . Critical Kills . | . . . Critical Parts Destroyed . | . . . Melee Attacks . | . . . Impact . | . . . Slashing . | . . . Piercing . | . . . Sneak Attacks . | . . . Combat Hostiles . | . . . Follow-up Attacks . | . . . Damage Inflicted 373 | 84 181 108 Guns 272 | 54 181 37 Cannons . | . . . Explosions 88 | 30 . 58 Melee . | . . . Ramming 13 | . . 13 Kinetic 27 | 15 12 . Thermal 184 | 30 79 75 Explosive . | . . . Electromagnetic 149 | 39 90 20 Impact . | . . . Slashing . | . . . Piercing . | . . . Highest Corruption 2 | . . 2 Average Corruption 2 | . . 2 Corruption Purged . | . . . Overload Shots . | . . . Overflow Damage . | . . . Projectiles . | . . . Explosions . | . . . Melee . | . . . Knockbacks . | . . . Impact . | . . . Kinetic . | . . . Secondary . | . . . Self-Inflicted Damage 44 | 32 . 12 Shots 2 | 1 . 1 Rammed 8 | . . 8 Targets Rammed 8 | . . 8 Kicked . | . . . Crushed . | . . . Highest Temperature 321 | 24 321 117 Average Temperature 93 | 18 111 67 Received Heat Transfer 240 | 12 18 210 Effects 2 | . 2 . Interference 2 | . 2 . Siege Activations . | . . . Robots Corrupted . | . . . Combat Hostiles . | . . . Parts Fried . | . . . Impact Corruptions . | . . . Robots Melted . | . . . Combat Hostiles . | . . . Parts Melted 1 | . 1 . Heat Transferred 372 | 50 185 137 Parts Sabotaged . | . . . Parts Stolen . | . . . Parts Stripped . | . . . Power Chain Reactions 2 | 1 . 1 Missiles Intercepted . | . . . Alert | -11 -10 -9 ------- Run | Scr Mat Mat Peak Influence 180 | 25 180 93 Initial 76 | . 16 76 Average 65 | 4 83 56 Maximum Alert Level . | . . . Low Security (%) 100 | 100 100 100 Level 1 . | . . . Level 2 . | . . . Level 3 . | . . . Level 4 . | . . . Level 5 . | . . . High Security . | . . . Max Security . | . . . Squads Dispatched 2 | . 1 1 Investigation 1 | . . 1 Extermination . | . . . Reinforcement 1 | . 1 . Assault . | . . . Garrison . | . . . Intercept . | . . . Construction Impeded . | . . . Haulers Reinforced . | . . . Stealth | -11 -10 -9 --------- Run | Scr Mat Mat Distress Signals . | . . . Communications Jammed . | . . . Distress Signals . | . . . Times Spotted 16 | 1 9 6 Peak Tracking Total 6 | 1 3 6 Tactical Retreats . | . . . Traps | -11 -10 -9 ------- Run | Scr Mat Mat Traps Triggered 4 | . 3 1 Indirectly . | . . . Trap Hack Attempts . | . . . Triggered . | . . . Disarmed . | . . . Reprogrammed . | . . . Reused . | . . . Traps Extracted . | . . . Installed . | . . . Triggered . | . . . Machines | -11 -10 -9 ---------- Run | Scr Mat Mat Machines Disabled 1 | . . 1 Max in Single Turn 1 | . . 1 Machines Sabotaged . | . . . Garrisons Compromised . | . . . Overloaded Fab Kills . | . . . Fab Network Shutdowns . | . . . Hacking | -11 -10 -9 --------- Run | Scr Mat Mat Machines Accessed 7 | . 4 3 Terminals 5 | . 2 3 Fabricators . | . . . Repair Stations 1 | . 1 . Recycling Units 1 | . 1 . Scanalyzers . | . . . Garrison Access . | . . . Total Hacks 14 | . 10 4 Successful 13 | . 9 4 Failed 1 | . 1 . Catastrophic . | . . . Database Lockouts . | . . . Manual . | . . . Terminals 9 | . 5 4 Fabricators . | . . . Repair Stations 1 | . 1 . Recycling Units 4 | . 4 . Scanalyzers . | . . . Garrison Access . | . . . Terminal Hacks 9 | . 5 4 Record 6 | . 4 2 Alert Level 1 | . 1 . Unreport Threat 1 | . . 1 Zone Layout 1 | . . 1 Fabricator Hacks . | . . . Repair Station Hacks 1 | . 1 . Scan Component 1 | . 1 . Recycling Unit Hacks 3 | . 3 . Recycle Component 1 | . 1 . Process 1 | . 1 . Report Inventory 1 | . 1 . Scanalyzer . | . . . Garrison Access Hacks . | . . . Unauthorized Hacks . | . . . Terminals . | . . . Fabricators . | . . . Repair Stations . | . . . Recycling Units . | . . . Scanalyzers . | . . . Garrison Access . | . . . Data Cores Recovered 1 | . 1 . Used 1 | . 1 . Hacking Detections 3 | . 2 1 Full Trace Events . | . . . Feedback Events . | . . . Feedback Blocked . | . . . Robot Schematics Acquired . | . . . Robots Built . | . . . Matter . | . . . Time . | . . . Total Robot Build Rating . | . . . Part Schematics Acquired . | . . . Parts Built . | . . . Matter . | . . . Time . | . . . Total Part Build Rating . | . . . Parts Repaired . | . . . Time . | . . . Parts Recycled 1 | . 1 . Recycled Matter 7 | . 7 . Retrieved Matter . | . . . Retrieved Components . | . . . Parts Scanalyzed . | . . . Part Schematics Acquired . | . . . Parts Damaged . | . . . Bothacking | -11 -10 -9 ------------ Run | Scr Mat Mat Used RIF Installer . | . . . Robots Hacked . | . . . Non-combat . | . . . Combat . | . . . Robot Hacks Applied . | . . . Relay Couplers Released . | . . . Robots Rewired . | . . . Allies Hacked . | . . . Hacks Repelled . | . . . Allies | -11 -10 -9 -------- Run | Scr Mat Mat Total Allies . | . . . Largest Group . | . . . Highest-Rated Group . | . . . Highest-Rated Ally . | . . . Total Orders . | . . . Ally Attacks . | . . . Total Damage . | . . . Kills . | . . . Allies Corrupted . | . . . Allies Melted . | . . . Intel | -11 -10 -9 ------- Run | Scr Mat Mat Robot Analysis Total . | . . . Derelict Logs Recovered . | . . . Drone Launches . | . . . Drone Recoveries . | . . . Exploration | -11 -10 -9 ------------- Run | Scr Mat Mat Turns Passed 598 | 90 367 141 Spaces Moved 501 | 85 330 86 Core 49 | 21 2 26 Treads 4 | . 2 2 Legs . | . . . Wheels 448 | 64 326 58 Hover . | . . . Flight . | . . . Fastest Speed 50 | 50 80 100 Average Speed 91 | 72 86 132 Slowest Speed 250 | 80 200 250 Overloaded Moves . | . . . Propulsion Burnouts . | . . . Robots Hopped . | . . . Cave-ins Triggered . | . . . Exploration Rate (%) 26 | 7 60 12 Regions Visited 2 Branch Regions . Pre-discovered Areas . | . . . Known Exits Taken . | . . . Unknown Exits Taken 2 | 1 1 . Scrap Searched . | . . . Spaces Dug . | . . . Terrain Destroyed 2 | . . 2 Melee . | . . . Projectile . | . . . AOE 2 | . . 2 Terrain Rammed . | . . . Walls Destroyed . | . . . Machines Disabled . | . . . Actions | -11 -10 -9 --------- Run | Scr Mat Mat Total 586 | 105 381 100 Wait 4 | . 3 1 Move 499 | 84 329 86 Hop . | . . . Pick Up 22 | 8 14 . Fast Attach . | . . . Attach 14 | 8 5 1 Detach 1 | . 1 . Swap 7 | . 7 . Drop 6 | 1 5 . Fire 25 | 4 17 4 Melee . | . . . Ram 4 | . . 4 Kick . | . . . Crush 4 | . . 4 Escape Stasis . | . . . Rewire . | . . . Trap . | . . . Miscellaneous . | . . . Route ------- -11/Scrapyard -10/Materials (discovered 4 exits: *Mat x2 / *Min x2) -9/Materials History --------- Turn | Location | Event 2 | -11/Scrapyard | Met Revision 17 66 | -11/Scrapyard | Discovered new exit (range 8) 91 | -11/Scrapyard | Entered Materials 192 | -10/Materials | Discovered new exit (range 16) 194 | -10/Materials | Met 8R-AWN 214 | -10/Materials | Identified exit to Mines 223 | -10/Materials | Discovered exit to Mines (range 9) 254 | -10/Materials | Discovered new exit (range 15) 308 | -10/Materials | Build established: Mutant 406 | -10/Materials | Discovered new exit (range 13) 458 | -10/Materials | Entered another Materials area 458 | -9/Materials | Evolved 2 slots: Utility x2 557 | -9/Materials | Core integrity fell below 50% 572 | -9/Materials | Lost 6 parts (1p2n1u2w) 573 | -9/Materials | Core integrity fell below 20% 599 | -9/Materials | Destroyed by L-31 Rogue with Katana Last Messages --------------- EM Pulse Gun destroyed. Lgt. Nuclear Core destroyed. Slammed into L-31 Rogue. Slammed into G-34 Mercenary. Lgt. Treads destroyed. U-05 Engineer builds a Wall. Sensor Array destroyed. U-05 Engineer builds a Wall. Slammed into L-31 Rogue. Connecting with Terminal... >>Layout(Zone) Retrieving Zone 2F layout... Downloaded map data. Slammed into L-31 Rogue. Destabilizing: System corrupted (+2). Connecting with Terminal... [Achievement: Everything Is Under Control] >>Alert(Purge) Purged threat record, alert level lowered. [Achievement: First Step to Greatness] Map ----- +----------------------------------------------------+ | ???????????????????????????????????????????? | | ???????????????????????????????????????????? | | ???????????????????????????????????????????? | | ???????????????????????????????????????????? | | ######+###?????????????????????????????????? | | ????????????????????????????????? | | ?????????????????????????????????? | | ########??????????????????????????????????? | | # #??????????????????????????????????? | | # #??????????????????????????????????? | | # """ #??????????????????????????????????? | | # """ #??????????????????????????????????? | | # """ #??????????????????????????????????? | | # #??????????????????????????????????? | | ###+####??????????????????????????????????? | | #??????????????????????????????????? | | ##########?????????????????????????? | | # #?????????????????????????? | | # #?????????????????????????? | | """"" # """ #?????????????????????????? | | """"" # """"" #?????????????????????????? | | """"" " """ #?????????????????????????? | | """"" # """ #?????##########??????????? | | """"" # % "" #?????# #??????????? | | """"" # % ####### """ !#??????????? | | """"" # = % # # @""" #??????????? | | ########## #l """ #??????????? | | % %% T g #??????????? | | #########/####### # """ #??????????? | | #???# % #?# # """ #??????????? | | #???# "T" #?## ## """ =#??????????? | | #???# #??# ## #??????????? | | #???# ! #??# ###########??????????? | | ################## #????????????????????? | | T #????????????????????? | | #????????????????????? | | """ !!! ######???????????????? | | """ !! ???????????????? | | """ !! ???????????????? | | ???????????????? | | ???????????????? | | """ """ """ ###+#???????????????? | | """ """ """ # ???????????????? | | """ """ """ #""" ???????????????? | | #""" ???????????????? | | #""" ???????????????? | | ???????????????????????????????????????????? | | ???????????????????????????????????????????? | | ???????????????????????????????????????????? | | ???????????????????????????????????????????? | +----------------------------------------------------+ Best States ------------- Heat Dissipation 35 Energy Generation 14 Energy Capacity 560 Matter Stores 350 Matter Capacity 350 Sight Range 18 Robot Scan Range 10 Terrain Scan Density 10 Evasion (%) 50 Recoil Reduction 1 Item Schematics ----------------- None Robot Schematics ------------------ None Fabricated ------------ Nothing Alien Tech Used ----------------- None Achievements -------------- Dynamic Key Everything Is Under Control First Step to Greatness Uninvited Guest Challenges ------------ None Game ------ Seed DataThrusterWarhead Manual? 0 Play Time 00:42:00 Cumulative 1.3 hours Start 2021.07.07 @ 12:13:47 End 2021.07.07 @ 12:56:11 Sessions 1 Manual Loads 0 Difficulty Rogue Special Mode None Game No. 2 Rogue 2 Adventurer 0 Explorer 0 Win Type - Total 0 Types 0/0/0/0/0/0/0/0/0 Lore% 1 Gallery% 4 Achievement% 1 Wizard Run 0 Options --------- ASCII 0 Keyboard 0 Movement Numpad Keybinds 0 Fullscreen 1 Font 18/X11 Map View 76x50 Tactical HUD 0 Map Filters NONE Filters NONE Steam 1 RUN: c04597fa-7e89-4618-9cea-6d499030a53c